bitfinex/quotes_BTCUSD_20250901
["timestamp","ask_amount","ask_price","bid_price","bid_amount"]
[1756750316843,1.06597081,109160.0,109150.0,0.00520715]
[1756750317017,0.92688356,109160.0,109150.0,0.00520715]
[1756750317161,0.90968171,109160.0,109150.0,0.00520715]
[1756750317362,0.88213371,109160.0,109150.0,0.00520715]
[1756750318025,0.882191,109160.0,109150.0,0.00520715]
[1756750318844,0.882191,109160.0,109150.0,0.16204715]
[1756750320596,0.52237814,109160.0,109150.0,0.16433757]
[1756750321001,0.52237814,109160.0,109150.0,0.34757165]
[1756750321180,0.52237664,109170.0,109150.0,0.34528123]
[1756750321392,0.52237664,109170.0,109160.0,0.07366]
[1756750321734,0.52237664,109170.0,109160.0,0.07564]
[1756750324132,0.52237664,109170.0,109160.0,0.07864]
[1756750325308,0.5315334,109180.0,109160.0,0.2641475]
[1756750325513,0.53237255,109180.0,109170.0,0.15989]
[1756750325666,0.8715334,109180.0,109170.0,0.34309051]
[1756750325873,0.8715334,109180.0,109170.0,0.34505051]
[1756750326458,0.8715334,109180.0,109170.0,0.16185]
[1756750326661,0.8715334,109180.0,109170.0,0.16414]
[1756750328781,0.8715334,109180.0,109170.0,0.34734051]
[1756750328941,0.8715334,109180.0,109170.0,0.34505051]
[1756750330231,0.8715334,109180.0,109170.0,0.16185]
[1756750330432,0.8715334,109180.0,109170.0,0.16414]
[1756750331298,0.8715334,109180.0,109170.0,0.34734051]
[1756750331499,0.8715334,109180.0,109170.0,0.16185]
[1756750331726,0.8715334,109180.0,109170.0,0.16414]
[1756750332572,0.8715334,109180.0,109170.0,0.34734051]
[1756750332790,0.8715334,109180.0,109170.0,0.34505051]
[1756750333230,0.5315334,109180.0,109170.0,0.34505051]
[1756750333453,0.18316695,109190.0,109180.0,0.18318373]
[1756750333454,0.8623278,109190.0,109180.0,0.18318373]
[1756750333636,0.8623278,109190.0,109180.0,0.07272979]
[1756750333910,0.6569226,109190.0,109180.0,0.07777979]
[1756750334117,0.84010482,109190.0,109180.0,0.07777979]
[1756750334507,0.84010482,109190.0,109180.0,0.26096352]
[1756750334721,0.84010482,109190.0,109180.0,0.07549]
[1756750334946,0.84010482,109190.0,109180.0,0.07777979]
[1756750335740,0.50110482,109190.0,109180.0,0.07777979]
[1756750336265,0.50210482,109190.0,109180.0,0.07777979]
[1756750338589,0.50210482,109190.0,109180.0,0.26096352]
[1756750338842,0.50210482,109190.0,109180.0,0.41539373]
[1756750339645,0.50210482,109190.0,109180.0,0.23221]
[1756750339861,0.50210482,109190.0,109180.0,0.25867373]
[1756750340077,0.50210482,109190.0,109180.0,0.23221]
[1756750340899,0.50210482,109190.0,109180.0,0.41539373]
[1756750342546,0.50210482,109190.0,109180.0,0.23217]
[1756750344222,0.50409482,109190.0,109180.0,0.07549]
[1756750344437,0.50409482,109190.0,109180.0,0.23445979]
[1756750344654,0.50409482,109190.0,109180.0,0.23217]
[1756750344884,0.50210482,109190.0,109180.0,0.23217]
[1756750345322,0.18518222,109190.0,109180.0,0.23217]
[1756750345545,0.52434307,109190.0,109180.0,0.23217]
[1756750346077,0.52434307,109190.0,109180.0,0.07549]
[1756750346472,0.52434307,109190.0,109180.0,0.23445979]
[1756750346730,0.52434307,109190.0,109180.0,0.23217]
[1756750350330,0.52402265,109190.0,109180.0,0.23217]
[1756750352359,0.18518222,109190.0,109180.0,0.23217]
[1756750352593,0.52402265,109190.0,109180.0,0.41535373]
[1756750353486,0.18518222,109190.0,109180.0,0.41535373]
[1756750353683,0.52402265,109190.0,109180.0,0.41535373]
[1756750354173,0.3389533,109190.0,109180.0,0.41535373]
[1756750354354,0.3389533,109190.0,109180.0,0.43629255]
[1756750354983,0.3389533,109190.0,109180.0,0.46382555]
[1756750355208,0.33884043,109190.0,109180.0,0.46382555]
[1756750355446,0.53117409,109200.0,109190.0,0.18316695]
[1756750355649,0.87001452,109200.0,109190.0,0.18748653]
[1756750356004,0.87001452,109200.0,109190.0,0.19051653]
[1756750356236,0.19432366,109200.0,109190.0,0.18822695]
[1756750356729,0.19532366,109200.0,109190.0,0.18822695]
[1756750357176,0.53410934,109200.0,109190.0,0.18822695]
[1756750357617,0.19532366,109200.0,109190.0,0.18822695]
[1756750357835,0.53211934,109200.0,109190.0,0.18822695]
[1756750358236,0.53411934,109200.0,109190.0,0.18822695]
[1756750360185,0.53211934,109200.0,109190.0,0.18822695]
[1756750360408,0.53413934,109200.0,109190.0,0.18822695]
[1756750360619,0.53211934,109200.0,109190.0,0.18822695]
[1756750360791,0.53413934,109200.0,109190.0,0.18822695]
[1756750361394,0.19333366,109200.0,109190.0,0.18822695]
[1756750361608,0.53211934,109200.0,109190.0,0.18822695]
[1756750361814,0.53211934,109200.0,109190.0,0.34478695]
[1756750362688,0.19333366,109200.0,109190.0,0.34478695]
[1756750363155,0.53211934,109200.0,109190.0,0.34469861]
[1756750364615,0.19333366,109200.0,109190.0,0.18813861]
[1756750364826,0.53211934,109200.0,109190.0,0.34469861]
[1756750365228,0.19333366,109200.0,109190.0,0.34469861]
[1756750365467,0.53409934,109200.0,109190.0,0.18813861]
[1756750365713,0.53409934,109200.0,109190.0,0.34166861]
[1756750365935,0.53409934,109200.0,109190.0,0.34469861]
[1756750366372,0.53211934,109200.0,109190.0,0.34469861]
[1756750367270,0.53211934,109200.0,109190.0,0.3435946]
[1756750369644,0.53409934,109200.0,109190.0,0.3435946]
[1756750375808,0.53409934,109200.0,109190.0,0.3435146]
[1756750378187,0.87288156,109200.0,109190.0,0.3435146]
[1756750378804,0.87288156,109200.0,109190.0,0.00203]
[1756750379002,0.87288156,109200.0,109180.0,0.30209555]
[1756750379003,0.18316695,109190.0,109180.0,0.30512555]
[1756750379231,0.5219509,109190.0,109180.0,0.55551154]
[1756750379539,0.33878395,109190.0,109180.0,0.55551154]
[1756750379759,0.5219509,109190.0,109180.0,0.55551154]
[1756750380151,0.33878395,109190.0,109180.0,0.55551154]
[1756750380360,0.33878395,109190.0,109180.0,0.55651154]
[1756750380594,0.5239409,109190.0,109180.0,0.55651154]
[1756750381058,0.5239409,109190.0,109180.0,0.40007154]
[1756750381275,0.5239409,109190.0,109180.0,0.55651154]
[1756750382613,0.5219509,109190.0,109180.0,0.55651154]
[1756750383653,0.5239509,109190.0,109180.0,0.55651154]
[1756750383885,0.5219509,109190.0,109180.0,0.55651154]
[1756750384311,0.33878395,109190.0,109180.0,0.55651154]
[1756750384542,0.19233366,109200.0,109180.0,0.55651154]
[1756750384770,0.33878395,109190.0,109180.0,0.55651154]
[1756750384988,0.5219509,109190.0,109180.0,0.40007154]
[1756750385206,0.5219509,109190.0,109180.0,0.55647154]
[1756750385522,0.33878395,109190.0,109180.0,0.55647154]
[1756750386365,0.5219509,109190.0,109180.0,0.55647154]
[1756750387033,0.19233366,109200.0,109180.0,0.55647154]
[1756750387272,0.33878395,109190.0,109180.0,0.55639154]
[1756750387494,0.19233366,109200.0,109180.0,0.55639154]
[1756750387701,0.33878395,109190.0,109180.0,0.55639154]
[1756750391798,0.5219509,109190.0,109180.0,0.55639154]
[1756750392908,0.18316695,109190.0,109180.0,0.55639154]
[1756750393123,0.5219509,109190.0,109180.0,0.55639154]
[1756750393971,0.33878395,109190.0,109180.0,0.55639154]
[1756750394185,0.5219509,109190.0,109180.0,0.55639154]
[1756750394614,0.33878395,109190.0,109180.0,0.55639154]
[1756750394829,0.18317616,109200.0,109190.0,0.18316695]
[1756750395070,0.86272406,109200.0,109190.0,0.25360695]
[1756750395930,0.86372406,109200.0,109190.0,0.25360695]
[1756750397464,0.18615616,109200.0,109190.0,0.25360695]
[1756750397746,0.86372406,109200.0,109190.0,0.25360695]
[1756750399227,0.86372406,109200.0,109190.0,0.07044]
[1756750399448,0.86372406,109200.0,109190.0,0.22676]
[1756750399657,0.86372406,109200.0,109190.0,0.41498695]
[1756750399861,0.86372406,109200.0,109190.0,0.41203695]
[1756750400550,0.86372406,109200.0,109190.0,0.25571695]
[1756750400754,0.86372406,109200.0,109190.0,0.22672]
[1756750402043,0.86372406,109200.0,109190.0,0.40988695]
[1756750402694,0.86372406,109200.0,109190.0,0.41494695]
[1756750403793,0.18615616,109200.0,109190.0,0.41494695]
[1756750404009,0.86372406,109200.0,109190.0,0.41494695]
[1756750406316,0.86372406,109200.0,109190.0,0.07044]
[1756750406557,0.86372406,109200.0,109190.0,0.40984695]
[1756750407057,0.86372406,109200.0,109190.0,0.41195695]
[1756750408887,0.86372406,109200.0,109190.0,0.44243795]
[1756750410626,0.18417616,109200.0,109190.0,0.44243795]
[1756750411104,0.86174406,109200.0,109190.0,0.44243795]
[1756750411547,0.86372406,109200.0,109190.0,0.44243795]
[1756750412007,0.86372406,109200.0,109190.0,0.41490695]
[1756750414013,0.001,109200.0,109190.0,0.52776176]
[1756750414231,0.33978395,109200.0,109190.0,0.52776176]
[1756750414816,0.33978395,109200.0,109190.0,0.55528976]
[1756750415009,0.33878395,109200.0,109190.0,0.55528976]
[1756750416025,0.33878395,109200.0,109190.0,0.55628976]
[1756750417716,0.02692109,109210.0,109200.0,0.204089]
[1756750417941,0.02739221,109210.0,109200.0,0.207249]
[1756750418172,0.00047112,109210.0,109200.0,0.209259]
[1756750418395,0.00047112,109210.0,109200.0,0.236787]
[1756750418609,0.01842892,109210.0,109200.0,0.236787]
[1756750419040,0.35721287,109210.0,109200.0,0.236787]
[1756750420189,0.01842892,109210.0,109200.0,0.236787]
[1756750420421,0.35721287,109210.0,109200.0,0.236787]
[1756750420648,0.35821287,109210.0,109200.0,0.236787]
[1756750425105,0.01942892,109210.0,109200.0,0.236787]
[1756750425318,0.01942892,109210.0,109200.0,0.32870299]
[1756750425319,0.35821287,109210.0,109200.0,0.32870299]
[1756750425531,0.00147112,109210.0,109200.0,0.32870299]
[1756750426388,0.00147112,109210.0,109200.0,0.72870299]
[1756750426811,0.00047112,109210.0,109200.0,0.72870299]
[1756750427038,0.00047112,109210.0,109200.0,0.94882299]
[1756750427714,0.00047112,109210.0,109200.0,1.28860694]
[1756750428390,0.00047112,109210.0,109200.0,0.94982299]
[1756750428820,0.00047112,109210.0,109200.0,0.94882299]
[1756750429221,0.00047112,109210.0,109200.0,0.95082299]
[1756750430132,0.00047112,109210.0,109200.0,1.29060694]
[1756750432448,0.00047112,109210.0,109200.0,0.95182299]
[1756750432660,0.00047112,109210.0,109200.0,1.29060694]
[1756750435003,0.00047112,109210.0,109200.0,0.95182299]
[1756750435161,0.00047112,109210.0,109200.0,1.29060694]
[1756750435930,0.00047112,109210.0,109200.0,0.95182299]
[1756750436146,0.00047112,109210.0,109200.0,1.29060694]
[1756750436873,0.00047112,109210.0,109200.0,1.44664694]
[1756750440164,0.00047112,109210.0,109200.0,2.12543089]
[1756750441023,0.00047112,109210.0,109200.0,2.12443089]
[1756750441742,0.00047112,109210.0,109200.0,2.12743089]
[1756750442658,0.00047112,109210.0,109200.0,1.44986299]
[1756750442864,0.00047112,109210.0,109200.0,1.44978299]
[1756750443079,0.00047112,109210.0,109200.0,2.12735089]
[1756750445274,1e-08,109210.0,109200.0,2.12735089]
[1756750446130,1e-08,109210.0,109200.0,2.49065089]
[1756750447005,1e-08,109210.0,109200.0,2.48765089]
[1756750447432,1e-08,109210.0,109200.0,2.49165089]
[1756750447656,1e-08,109210.0,109200.0,2.48965089]
[1756750447867,1e-08,109210.0,109200.0,2.49265089]
[1756750454182,1e-08,109210.0,109200.0,2.44265089]
[1756750454394,1e-08,109210.0,109200.0,2.49265089]
[1756750456291,0.14617726,109240.0,109230.0,0.18309988]
[1756750456542,0.0168842,109250.0,109240.0,0.20402193]
[1756750456681,0.01697047,109250.0,109240.0,0.35986193]
[1756750456893,8.627e-05,109250.0,109240.0,0.38737893]
[1756750457315,8.627e-05,109250.0,109240.0,0.38537893]
[1756750457518,8.627e-05,109250.0,109240.0,0.38437893]
[1756750457732,8.627e-05,109250.0,109240.0,0.47629492]
[1756750457929,0.00308627,109250.0,109240.0,0.47629492]
[1756750458447,0.00308627,109250.0,109240.0,0.81829887]
[1756750458657,0.00308627,109250.0,109240.0,0.82037887]
[1756750459306,0.00208627,109250.0,109240.0,0.48159492]
[1756750459524,0.00208627,109250.0,109240.0,0.82037887]
[1756750459738,8.627e-05,109250.0,109240.0,0.82037887]
[1756750460368,8.627e-05,109250.0,109240.0,0.83729328]
[1756750461212,8.627e-05,109250.0,109240.0,1.23729328]
[1756750461656,8.627e-05,109250.0,109240.0,1.23829328]
[1756750461864,8.627e-05,109250.0,109240.0,0.89950933]
[1756750462087,8.627e-05,109250.0,109240.0,1.23829328]
[1756750463142,8.627e-05,109250.0,109240.0,0.89950933]
[1756750463381,8.627e-05,109250.0,109240.0,1.23829328]
[1756750463826,8.627e-05,109250.0,109240.0,0.72675492]
[1756750464082,8.627e-05,109250.0,109240.0,0.88255492]
[1756750464320,8.627e-05,109250.0,109240.0,0.899153]
[1756750464541,8.627e-05,109250.0,109240.0,1.23793695]
[1756750466645,8.627e-05,109250.0,109240.0,0.899153]
[1756750466856,8.627e-05,109250.0,109240.0,1.23793695]
[1756750467491,8.627e-05,109250.0,109240.0,1.22133887]
[1756750470447,8.627e-05,109250.0,109240.0,1.06553887]
[1756750470649,8.627e-05,109250.0,109240.0,1.22129887]
[1756750471523,8.627e-05,109250.0,109240.0,0.88251492]
[1756750471786,8.627e-05,109250.0,109240.0,1.22129887]
[1756750474153,8.627e-05,109250.0,109240.0,0.72675492]
[1756750474360,8.627e-05,109250.0,109240.0,1.44125887]
[1756750474550,8.627e-05,109250.0,109240.0,1.10247492]
[1756750474753,8.627e-05,109250.0,109240.0,1.44125887]
[1756750478907,8.627e-05,109250.0,109240.0,1.44121887]
[1756750479347,8.627e-05,109250.0,109240.0,1.10243492]
[1756750479557,8.627e-05,109250.0,109240.0,1.44121887]
[1756750480399,8.627e-05,109250.0,109240.0,1.10243492]
[1756750480642,8.627e-05,109250.0,109240.0,1.44121887]
[1756750484588,8.627e-05,109250.0,109240.0,0.94675492]
[1756750484809,8.627e-05,109250.0,109240.0,1.44121887]
[1756750485866,8.627e-05,109250.0,109240.0,1.10243492]
[1756750486074,8.627e-05,109250.0,109240.0,1.44121887]
[1756750486944,8.627e-05,109250.0,109240.0,1.10243492]
[1756750487172,8.627e-05,109250.0,109240.0,1.44121887]
[1756750488466,8.627e-05,109250.0,109240.0,1.44117887]
[1756750489341,8.627e-05,109250.0,109240.0,1.10239492]
[1756750489554,8.627e-05,109250.0,109240.0,1.44117887]
[1756750503707,8.627e-05,109250.0,109240.0,1.10239492]
[1756750503887,8.627e-05,109250.0,109240.0,1.44117887]
[1756750504283,8.627e-05,109250.0,109240.0,1.10231492]
[1756750504647,8.627e-05,109250.0,109240.0,1.44109887]
[1756750506511,8.627e-05,109250.0,109240.0,1.10231492]
[1756750506727,8.627e-05,109250.0,109240.0,1.44109887]
[1756750508080,8.627e-05,109250.0,109240.0,1.51149887]
[1756750514558,8.627e-05,109250.0,109240.0,1.17271492]
[1756750514775,8.627e-05,109250.0,109240.0,1.51149887]
[1756750518685,8.627e-05,109250.0,109240.0,1.51271492]
[1756750518919,1e-08,109250.0,109240.0,1.85149887]
[1756750519119,1e-08,109250.0,109240.0,2.24028282]
[1756750519324,1e-08,109250.0,109240.0,2.57906677]
[1756750519525,1e-08,109250.0,109240.0,2.66132636]
[1756750519730,1e-08,109250.0,109240.0,2.32250241]
[1756750520158,1e-08,109250.0,109240.0,2.32550241]
[1756750520362,1e-08,109250.0,109240.0,2.16998241]
[1756750520564,1e-08,109250.0,109240.0,2.32550241]
[1756750521170,1e-08,109250.0,109240.0,2.32450241]
[1756750521381,1e-08,109250.0,109240.0,1.64693451]
[1756750521597,1e-08,109250.0,109240.0,2.16898241]
[1756750521781,1e-08,109250.0,109240.0,2.32450241]
[1756750522218,1e-08,109250.0,109240.0,2.24224282]
[1756750522424,1e-08,109250.0,109240.0,2.24424282]
[1756750523826,1e-08,109250.0,109240.0,1.56667492]
[1756750524041,1e-08,109250.0,109240.0,2.24424282]
[1756750524242,1e-08,109250.0,109240.0,2.58302677]
[1756750524452,1e-08,109250.0,109240.0,2.71528636]
[1756750525959,1e-08,109250.0,109240.0,1.69893451]
[1756750526162,1e-08,109250.0,109240.0,2.71528636]
[1756750529436,1e-08,109250.0,109240.0,2.97858636]
[1756750530742,1e-08,109270.0,109260.0,1.27034027]
[1756750530955,1e-08,109270.0,109260.0,1.78103626]
[1756750531176,1e-08,109280.0,109260.0,1.84441231]
[1756750531420,1e-08,109280.0,109270.0,1.25279952]
[1756750531640,1e-08,109280.0,109270.0,1.25367161]
[1756750532062,1e-08,109280.0,109270.0,1.25583161]
[1756750532754,1e-08,109280.0,109270.0,1.27328561]
[1756750533616,1e-08,109280.0,109270.0,1.61206956]
[1756750534264,1e-08,109280.0,109270.0,1.61606956]
[1756750534476,1e-08,109280.0,109270.0,1.27728561]
[1756750534689,1e-08,109280.0,109270.0,1.31873996]
[1756750534901,1e-08,109280.0,109270.0,1.71873996]
[1756750535531,1e-08,109280.0,109270.0,1.37995601]
[1756750535743,1e-08,109280.0,109270.0,1.71873996]
[1756750535965,1e-08,109280.0,109270.0,2.05752391]
[1756750536392,1e-08,109280.0,109270.0,1.37995601]
[1756750536606,1e-08,109280.0,109270.0,2.05752391]
[1756750538015,1e-08,109280.0,109270.0,2.05748391]
[1756750538385,1e-08,109280.0,109270.0,1.71869996]
[1756750540884,1e-08,109280.0,109270.0,2.05748391]
[1756750541293,1e-08,109280.0,109270.0,2.32078391]
[1756750541700,1e-08,109280.0,109270.0,1.64321601]
[1756750541926,1e-08,109280.0,109270.0,2.32078391]
[1756750545783,1e-08,109280.0,109270.0,2.54066391]
[1756750545997,1e-08,109280.0,109270.0,1.86309601]
[1756750546205,1e-08,109280.0,109270.0,2.20187996]
[1756750547634,1e-08,109280.0,109270.0,2.04647996]
[1756750547841,1e-08,109280.0,109270.0,2.20187996]
[1756750548083,1e-08,109280.0,109270.0,2.16042561]
[1756750548713,1e-08,109280.0,109270.0,1.82164166]
[1756750548947,1e-08,109280.0,109270.0,2.16042561]
[1756750551381,1e-08,109290.0,109280.0,1.22060471]
[1756750551708,1e-08,109290.0,109280.0,1.13236675]
[1756750552099,1e-08,109290.0,109280.0,1.13450675]
[1756750552223,1e-08,109290.0,109280.0,1.56200575]
[1756750552644,1e-08,109290.0,109280.0,1.56400575]
[1756750552902,1e-08,109290.0,109280.0,1.57810382]
[1756750553115,1e-08,109290.0,109280.0,1.84140382]
[1756750553747,1e-08,109290.0,109280.0,1.84340382]
[1756750554491,0.16807627,109310.0,109300.0,0.20392143]
[1756750554696,0.16807627,109310.0,109300.0,0.36619742]
[1756750554913,0.6775679,109310.0,109300.0,0.33838261]
[1756750555117,0.89126403,109310.0,109300.0,0.33838261]
[1756750555558,0.18298261,109300.0,109280.0,0.25445799]
[1756750555773,0.56107198,109300.0,109290.0,0.1554]
[1756750556249,0.22228803,109300.0,109290.0,0.1554]
[1756750556482,0.22228803,109300.0,109290.0,0.33839935]
[1756750556681,0.22228803,109300.0,109290.0,0.1554]
[1756750556885,1.23863988,109300.0,109290.0,0.33839935]
[1756750557100,1.23006472,109300.0,109290.0,0.33839935]
[1756750557309,1.23106472,109300.0,109290.0,0.33839935]
[1756750557510,1.23106472,109300.0,109290.0,0.1554]
[1756750557882,1.23106472,109300.0,109290.0,0.33839935]
[1756750558087,0.89321297,109300.0,109290.0,0.33839935]
[1756750558698,0.89321297,109300.0,109290.0,0.1554]
[1756750558897,0.18299935,109290.0,109270.0,0.21969049]
[1756750559107,0.52126615,109280.0,109270.0,0.21068017]
[1756750559305,0.52126615,109280.0,109270.0,0.02764732]
[1756750559506,0.52126615,109280.0,109270.0,0.00014132]
[1756750559750,0.52126615,109280.0,109270.0,0.18317417]
[1756750560184,0.52126615,109280.0,109270.0,0.00014132]
[1756750560397,0.55199641,109280.0,109270.0,0.00014132]
[1756750561806,0.55399641,109280.0,109270.0,0.00014132]
[1756750562013,0.89224646,109280.0,109270.0,0.00014132]
[1756750562227,0.89224646,109280.0,109270.0,0.00114132]
[1756750562425,0.55399641,109280.0,109270.0,0.00114132]
[1756750562658,0.70939641,109280.0,109270.0,0.00114132]
[1756750562873,0.70939641,109280.0,109270.0,0.00014132]
[1756750563047,0.71039641,109280.0,109270.0,0.00014132]
[1756750563297,0.67966615,109280.0,109270.0,0.18317417]
[1756750564079,0.52426615,109280.0,109270.0,0.18317417]
[1756750564767,0.34125005,109280.0,109270.0,0.18317417]
[1756750565014,0.52426615,109280.0,109270.0,0.18317417]
[1756750565223,0.34125005,109280.0,109270.0,0.18317417]
[1756750565435,0.52426615,109280.0,109270.0,0.18317417]
[1756750566097,0.52126615,109280.0,109270.0,0.18317417]
[1756750568002,0.67666615,109280.0,109270.0,0.18317417]
[1756750568680,0.33825005,109280.0,109270.0,0.18317417]
[1756750568893,0.5487614,109290.0,109280.0,0.1830161]
[1756750569102,0.7041614,109290.0,109280.0,0.1830161]
[1756750569311,0.52116205,109290.0,109280.0,0.1830161]
[1756750569546,0.6766494,109290.0,109280.0,0.1830161]
[1756750569967,0.6776494,109290.0,109280.0,0.1830161]
[1756750570177,1.01589945,109290.0,109280.0,0.1830161]
[1756750570849,1.01789945,109290.0,109280.0,0.1830161]
[1756750571659,0.1830161,109280.0,109270.0,0.18317417]
[1756750571876,0.1830161,109280.0,109270.0,0.00014132]
[1756750571877,0.52126615,109280.0,109270.0,0.00014132]
[1756750573269,0.52226615,109280.0,109270.0,0.00014132]
[1756750573917,0.55299641,109280.0,109270.0,0.00014132]
[1756750574963,0.98316245,109280.0,109270.0,0.00014132]
[1756750575187,1.07507844,109280.0,109270.0,0.00014132]
[1756750575807,0.91848775,109280.0,109270.0,0.00014132]
[1756750576035,1.10150385,109280.0,109270.0,0.00014132]
[1756750576236,1.00958786,109280.0,109270.0,0.00014132]
[1756750576442,1.56994786,109280.0,109270.0,0.00014132]
[1756750576839,1.72534786,109280.0,109270.0,0.00014132]
[1756750578074,1.72734786,109280.0,109270.0,0.00014132]
[1756750578563,1.72934786,109280.0,109270.0,0.00014132]
[1756750578747,6.82126385,109280.0,109270.0,0.00014132]
[1756750578888,6.72934786,109280.0,109270.0,0.00014132]
[1756750579314,6.75998132,109280.0,109270.0,0.00014132]
[1756750579986,6.77966923,109280.0,109270.0,0.00014132]
[1756750580213,6.8360803,109280.0,109270.0,0.00014132]
[1756750581424,7.17433035,109280.0,109270.0,0.00014132]
[1756750581649,6.92908688,109280.0,109270.0,0.00014132]
[1756750582251,6.92909282,109280.0,109270.0,0.00014132]
[1756750582867,7.42779282,109280.0,109270.0,0.00014132]
[1756750583289,7.45248067,109280.0,109270.0,0.00014132]
[1756750584130,7.40248067,109280.0,109270.0,0.00014132]
[1756750584339,7.45248067,109280.0,109270.0,1e-08]
[1756750584573,0.18308311,109240.0,109230.0,0.07678631]
[1756750584792,1.01498321,109240.0,109230.0,0.07885631]
[1756750585015,1.04571347,109240.0,109230.0,0.07678631]
[1756750585230,1.15975646,109240.0,109230.0,0.07678631]
[1756750585449,1.31515646,109240.0,109230.0,0.07678631]
[1756750585900,1.31515646,109240.0,109230.0,0.00332627]
[1756750586116,1.35700969,109240.0,109230.0,0.00332627]
[1756750586955,1.20160969,109240.0,109230.0,0.00332627]
[1756750587178,1.35700969,109240.0,109230.0,0.00332627]
[1756750587624,1.35700969,109240.0,109230.0,0.00639627]
[1756750588061,1.37094252,109240.0,109230.0,0.00739627]
[1756750588612,1.37094252,109240.0,109230.0,0.00532627]
[1756750588961,1.21554252,109240.0,109230.0,0.00739627]
[1756750589165,1.37094252,109240.0,109230.0,0.00739627]
[1756750589366,1.37094252,109240.0,109230.0,0.00639627]
[1756750590357,1.37094252,109240.0,109230.0,0.00539627]
[1756750590797,0.84066599,109240.0,109230.0,0.00539627]
[1756750591010,0.53526599,109240.0,109230.0,0.18849615]
[1756750591231,0.50758288,109240.0,109230.0,0.18949615]
[1756750591738,0.53526599,109240.0,109230.0,0.18949615]
[1756750591946,0.69066599,109240.0,109230.0,0.18949615]
[1756750592992,0.50758288,109240.0,109230.0,0.18949615]
[1756750593199,0.69066599,109240.0,109230.0,0.18949615]
[1756750593856,1.02891604,109240.0,109230.0,0.00639627]
[1756750594060,1.02891604,109240.0,109230.0,0.00432627]
[1756750594607,1.02891604,109240.0,109230.0,0.00639627]
[1756750595034,0.83229958,109240.0,109230.0,0.00639627]
[1756750595834,0.87679632,109240.0,109230.0,0.00432627]
[1756750596504,0.87679632,109240.0,109230.0,0.00646627]
[1756750597347,0.87679632,109240.0,109230.0,0.00108627]
[1756750597562,1.2106283,109240.0,109230.0,0.00108627]
[1756750597778,1.11871231,109240.0,109230.0,0.00108627]
[1756750597947,1.14623931,109240.0,109230.0,0.00108627]
[1756750598566,1.14723931,109240.0,109230.0,8.627e-05]
[1756750600447,1.00039421,109240.0,109230.0,8.627e-05]
[1756750600650,1.1557942,109240.0,109230.0,0.00314627]
[1756750600856,1.12506394,109240.0,109230.0,0.00314627]
[1756750601294,1.28006935,109240.0,109230.0,0.00314627]
[1756750601531,1.12466935,109240.0,109230.0,0.00314627]
[1756750601740,1.2800692,109240.0,109230.0,0.00314627]
[1756750602158,1.2715123,109240.0,109230.0,0.00314627]
[1756750602375,1.28006928,109240.0,109230.0,0.00314627]
[1756750602585,1.13006928,109240.0,109230.0,0.00528627]
[1756750602798,0.79181923,109240.0,109230.0,0.00528627]
[1756750602998,0.97466928,109240.0,109230.0,0.00528627]
[1756750603209,1.13006928,109240.0,109230.0,0.00528627]
[1756750603395,0.9746743,109240.0,109230.0,0.00528627]
[1756750603568,1.1300743,109240.0,109230.0,0.00528627]
[1756750603973,1.13007445,109240.0,109230.0,0.00528627]
[1756750606395,1.13650437,109240.0,109230.0,0.00528627]
[1756750608269,0.81798037,109240.0,109230.0,0.18838615]
[1756750608461,1.49623042,109240.0,109230.0,0.18838615]
[1756750608928,1.46870342,109240.0,109230.0,0.18838615]
[1756750609530,1.44893737,109240.0,109230.0,0.18838615]
[1756750609741,1.29357737,109240.0,109230.0,0.00528627]
[1756750609926,1.46871088,109240.0,109230.0,0.00528627]
[1756750610782,1.46871088,109240.0,109230.0,0.00314627]
[1756750610993,1.13046083,109240.0,109230.0,0.00314627]
[1756750611593,1.16119109,109240.0,109230.0,0.00314627]
[1756750611794,1.16119109,109240.0,109230.0,8.627e-05]
[1756750613847,1.15262894,109240.0,109230.0,8.627e-05]
[1756750614047,1.16122856,109240.0,109230.0,8.627e-05]
[1756750614846,1.16123101,109240.0,109230.0,8.627e-05]
[1756750615795,6.63817314,109240.0,109230.0,8.627e-05]
[1756750615995,6.66570314,109240.0,109230.0,8.627e-05]
[1756750616636,6.66570314,109240.0,109200.0,0.00306]
[1756750616637,0.52138346,109210.0,109200.0,0.00306]
[1756750616843,0.67674346,109210.0,109200.0,0.00306]
[1756750617021,0.70747372,109210.0,109200.0,0.00306]
[1756750617465,0.70747372,109210.0,109200.0,0.0052]
[1756750617872,0.67674346,109210.0,109200.0,0.0052]
[1756750617996,0.67674346,109210.0,109200.0,0.0062]
[1756750618197,0.67674346,109210.0,109200.0,0.0072]
[1756750618638,0.67674346,109210.0,109200.0,0.0082]
[1756750619040,0.71876901,109210.0,109200.0,0.0082]
[1756750619474,0.56340901,109210.0,109200.0,0.0082]
[1756750619673,0.71876901,109210.0,109200.0,0.0062]
[1756750619798,0.71876901,109210.0,109200.0,0.0072]
[1756750621708,0.22515896,109210.0,109200.0,0.0072]
[1756750621913,0.71876901,109210.0,109200.0,0.0072]
[1756750624876,0.71876901,109210.0,109200.0,0.00506]
[1756750625106,0.93333125,109210.0,109200.0,0.002]
[1756750625280,0.84137526,109210.0,109200.0,0.00717]
[1756750625975,0.810645,109210.0,109200.0,0.00717]
[1756750626176,0.810645,109210.0,109200.0,0.00617]
[1756750627245,0.810645,109210.0,109200.0,0.00717]
[1756750629689,0.22515896,109210.0,109200.0,0.19032018]
[1756750629899,0.93178198,109220.0,109210.0,0.18313341]
[1756750630105,1.08710198,109220.0,109210.0,0.18830341]
[1756750630357,0.55806358,109230.0,109210.0,0.18830341]
[1756750630574,5.33843664,109220.0,109210.0,0.18529341]
[1756750630781,0.15532,109220.0,109210.0,0.18529341]
[1756750630989,0.49357005,109220.0,109210.0,0.18529341]
[1756750631221,0.67668669,109220.0,109210.0,0.18830341]
[1756750633179,0.33825005,109220.0,109210.0,0.18830341]
[1756750633375,0.49357005,109220.0,109210.0,0.18830341]
[1756750633600,0.67668669,109220.0,109210.0,0.18830341]
[1756750633963,0.67668669,109220.0,109210.0,0.00717]
[1756750634171,0.67668669,109220.0,109210.0,0.002]
[1756750634172,0.76860268,109220.0,109210.0,0.002]
[1756750634379,1.25333717,109220.0,109210.0,0.004]
[1756750634595,1.23186118,109220.0,109210.0,0.004]
[1756750634805,1.23186118,109220.0,109210.0,0.002]
[1756750635014,0.18315018,109200.0,109190.0,0.19533399]
[1756750635225,0.67672023,109200.0,109190.0,0.19533399]
[1756750635455,0.49357005,109200.0,109190.0,0.19749399]
[1756750636276,0.49357005,109200.0,109190.0,0.19796511]
[1756750637137,0.67671869,109210.0,109200.0,0.18315018]
[1756750637333,0.67671869,109210.0,109200.0,0.18531018]
[1756750637550,0.67671869,109210.0,109200.0,0.18832018]
[1756750638304,0.67671869,109210.0,109200.0,0.18932018]
[1756750638713,0.67671869,109210.0,109200.0,0.19032018]
[1756750638967,0.67671869,109210.0,109200.0,0.00717]
[1756750639791,0.67671869,109210.0,109200.0,0.002]
[1756750640002,0.52139869,109210.0,109200.0,0.002]
[1756750640223,0.33825005,109210.0,109200.0,0.19032018]